bitfinex/quotes_ETHUSD_20241119
["timestamp","ask_amount","ask_price","bid_price","bid_amount"]
[1731986640535,3.16717,3157.4,3156.9,0.6413]
[1731986640733,3.16701,3157.6,3156.9,3.8089]
[1731986641044,3.16679,3157.8,3157.1,0.3167]
[1731986641251,3.16679,3157.8,3157.3,0.3167]
[1731986641411,6.33369,3157.8,3157.3,0.3167]
[1731986641753,3.16696,3157.6,3157.3,0.3167]
[1731986642115,3.16682,3157.8,3157.4,0.3167]
[1731986642323,3.16666,3157.9,3157.4,0.6413]
[1731986642629,3.1664,3158.2,3157.4,0.6413]
[1731986642630,3.16638,3158.2,3157.7,0.3167]
[1731986643341,3.16647,3158.1,3157.7,0.3167]
[1731986643543,3.16647,3158.1,3157.6,0.3167]
[1731986644553,3.16685,3157.8,3157.6,0.3167]
[1731986644719,3.16685,3157.8,3157.7,0.3167]
[1731986645713,3.16666,3157.9,3157.3,3.48396]
[1731986646117,3.16646,3158.1,3157.7,0.3167]
[1731986646419,0.8301,3158.3,3157.7,3.48355]
[1731986646621,0.55,3158.3,3157.9,0.3167]
[1731986647238,3.71628,3158.3,3157.9,0.3167]
[1731986647821,3.16641,3158.2,3157.9,0.3167]
[1731986648318,0.8112,3159.0,3158.2,0.3167]
[1731986648653,3.16545,3159.2,3158.5,3.48274]
[1731986649253,3.16546,3159.1,3158.5,3.80734]
[1731986649406,3.16557,3159.0,3158.5,0.6413]
[1731986650924,0.05356514,3159.0,3158.3,0.3167]
[1731986651119,3.16584,3158.8,3158.3,0.3167]
[1731986652217,0.55,3158.9,3158.3,3.48294]
[1731986652554,0.55,3158.9,3158.5,0.3167]
[1731986653463,3.71567,3158.9,3158.6,0.3167]
[1731986654469,1.318955,3158.9,3158.7,0.3167]
[1731986654627,3.16576,3158.8,3158.7,0.3167]
[1731986656865,3.16576,3158.8,3158.3,0.3167]
[1731986657765,0.55,3158.9,3158.3,3.48295]
[1731986658382,3.71567,3158.9,3158.3,3.48295]
[1731986658988,0.55,3158.9,3158.3,3.48295]
[1731986659280,0.55,3158.9,3158.3,0.3167]
[1731986659483,3.71566,3158.9,3158.5,0.3167]
[1731986660085,3.16566,3158.9,3158.4,3.16613]
[1731986660396,3.1654,3159.2,3158.7,0.6413]
[1731986660683,3.16552,3159.1,3158.7,0.6413]
[1731986663288,0.55,3159.3,3158.7,0.6413]
[1731986663589,0.70044162,3159.3,3158.7,0.6413]
[1731986663788,0.70044162,3159.3,3158.7,3.80709]
[1731986663789,3.16526,3159.3,3158.7,3.80709]
[1731986663993,0.7889,3159.4,3158.9,0.3167]
[1731986664198,3.9966,3159.6,3158.9,3.48234]
[1731986664404,3.9966,3159.6,3159.1,0.3167]
[1731986664603,3.9966,3159.6,3159.1,3.48215]
[1731986664810,3.16517,3159.4,3159.1,0.3167]
[1731986665312,3.99695,3159.2,3159.1,0.3167]
[1731986665524,4.713162,3159.2,3159.1,0.3167]
[1731986666476,3.16568,3158.9,3158.5,0.3167]
[1731986666808,0.05356514,3158.8,3158.5,0.3167]
[1731986666961,3.21931514,3158.8,3158.5,0.3167]
[1731986667162,0.05356514,3158.8,3158.5,0.3167]
[1731986667357,3.881592,3159.2,3158.7,0.3167]
[1731986667587,3.1655,3159.1,3158.7,0.6413]
[1731986667802,3.16557,3159.0,3158.7,0.6413]
[1731986668128,3.16557,3159.0,3158.7,0.3167]
[1731986668405,3.16557,3159.0,3158.6,0.3167]
[1731986668904,3.16512,3159.5,3159.2,0.3167]
[1731986669538,3.16525,3159.3,3159.2,0.3167]
[1731986670017,6.3306,3159.3,3158.9,0.3167]
[1731986670236,3.16535,3159.2,3158.9,0.3167]
[1731986670809,2.84855,3159.3,3158.9,0.3167]
[1731986671181,3.16542,3159.2,3158.9,0.3167]
[1731986680103,2.84872,3159.2,3158.9,0.3167]
[1731986680353,2.84872,3159.2,3158.8,0.3167]
[1731986680660,3.16532,3159.3,3158.8,0.3167]
[1731986681000,3.16532,3159.3,3158.8,3.48245]
[1731986681205,3.16535,3159.2,3158.8,0.3167]
[1731986681441,3.16532,3159.3,3158.7,0.3167]
[1731986681650,3.16532,3159.3,3158.7,3.48253]
[1731986682248,3.16535,3159.2,3158.7,3.48253]
[1731986684305,3.16516,3159.4,3158.7,3.48253]
[1731986684614,3.16526,3159.3,3158.7,3.48253]
[1731986686141,0.8322,3159.1,3158.8,0.3167]
[1731986686311,3.16556,3159.0,3158.8,0.3167]
[1731986686506,3.16565,3158.9,3158.8,0.3167]
[1731986686707,3.21921514,3158.9,3158.8,0.3167]
[1731986686939,3.16565,3158.9,3158.8,0.3167]
[1731986687122,3.16585,3158.8,3158.2,3.48303]
[1731986687336,3.16585,3158.8,3158.4,0.3167]
[1731986688258,3.16585,3158.8,3158.3,0.3167]
[1731986689218,3.16585,3158.8,3158.1,0.3167]
[1731986689555,3.16593,3158.7,3158.1,3.89372703]
[1731986690652,3.16596,3158.6,3158.1,0.72728703]
[1731986690954,3.96466,3158.6,3158.1,0.3167]
[1731986693371,3.96466,3158.6,3158.1,3.48315]
[1731986693553,3.96466,3158.6,3158.1,0.3167]
[1731986694635,3.96466,3158.6,3158.1,3.48312]
[1731986694836,3.16592,3158.7,3158.1,3.48312]
[1731986695767,3.16581,3158.8,3158.2,0.3167]
[1731986696058,0.399776,3159.0,3158.5,0.3167]
[1731986696232,3.16568,3158.9,3158.5,0.3167]
[1731986697951,3.16577,3158.8,3158.3,0.3167]
[1731986699163,3.16587,3158.7,3158.3,0.3167]
[1731986699589,3.16577,3158.8,3158.3,0.3167]
[1731986700223,6.33162,3158.8,3158.3,0.3167]
[1731986700567,3.16566,3158.9,3157.9,3.3167]
[1731986700773,3.16566,3158.9,3158.4,2.84997]
[1731986701523,3.16566,3158.9,3158.5,0.3167]
[1731986701723,3.98618,3159.0,3158.5,0.3167]
[1731986701933,0.8206,3159.0,3158.5,0.3167]
[1731986702235,3.16576,3158.8,3158.6,0.3167]
[1731986703186,0.8206,3159.0,3158.7,0.3167]
[1731986703549,3.98618,3159.0,3158.7,0.3167]
[1731986703750,0.8206,3159.0,3158.7,0.3167]
[1731986703956,3.16544,3159.2,3158.7,3.830789]
[1731986704466,3.16544,3159.2,3158.7,3.48252]
[1731986704980,3.16517,3159.4,3158.9,3.48235]
[1731986705155,0.7967,3159.5,3158.9,3.48235]
[1731986705350,3.96177,3159.5,3158.9,3.48235]
[1731986705887,0.7967,3159.5,3159.1,0.3167]
[1731986706380,3.96177,3159.5,3159.1,0.3167]
[1731986706540,3.16516,3159.4,3159.1,0.3167]
[1731986706942,3.16516,3159.4,3158.9,0.3167]
[1731986707371,3.96177,3159.5,3158.9,3.48233]
[1731986707570,3.16486,3159.7,3159.1,0.3167]
[1731986707787,0.7915,3159.8,3159.1,0.3167]
[1731986708113,3.16497,3159.6,3159.1,0.3167]
[1731986708453,3.95626,3159.8,3159.1,0.3167]
[1731986708647,3.16485,3159.7,3159.1,0.3167]
[1731986708849,3.1817832,3159.7,3159.1,0.3167]
[1731986709941,3.1817832,3159.7,3159.1,3.48215]
[1731986710640,3.16497,3159.6,3159.1,3.4313504]
[1731986710841,3.16535,3159.2,3159.1,0.1643012]
[1731986711093,0.7951,3159.3,3159.1,0.147368]
[1731986711261,3.96038,3159.3,3159.1,0.147368]
[1731986712148,3.16535,3159.2,3159.1,0.147368]
[1731986712499,0.7951,3159.3,3159.1,0.147368]
[1731986712789,3.96036,3159.3,3159.1,0.147368]
[1731986712996,4.39790964,3159.3,3159.1,0.147368]
[1731986713491,3.16535,3159.2,3159.1,0.147368]
[1731986714068,3.16535,3159.2,3158.6,0.3167]
[1731986714255,3.16554,3159.1,3158.6,0.3167]
[1731986714492,3.16573,3158.9,3158.4,0.3167]
[1731986714835,3.95097,3158.8,3158.4,0.3167]
[1731986715042,3.16593,3158.7,3158.4,0.3167]
[1731986715197,3.16603,3158.6,3158.4,0.3167]
[1731986715537,3.16605,3158.5,3158.4,0.3167]
[1731986715691,0.7852,3158.8,3158.5,0.3167]
[1731986716406,3.95098,3158.8,3158.5,0.3167]
[1731986716815,0.7852,3158.8,3158.3,0.3167]
[1731986717022,3.16587,3158.7,3158.3,0.3167]
[1731986717226,0.7852,3158.8,3158.3,0.3167]
[1731986719145,3.16586,3158.7,3158.1,0.3167]
[1731986719489,3.16596,3158.6,3158.1,0.3167]
[1731986720239,3.16586,3158.7,3158.1,3.4831]
[1731986721713,0.7852,3158.8,3158.1,3.4831]
[1731986721915,0.7852,3158.8,3158.4,0.3167]
[1731986722213,3.95096,3158.8,3158.4,0.3167]
[1731986722824,3.95096,3158.8,3158.5,0.3167]
[1731986723196,0.7852,3158.8,3158.5,0.3167]
[1731986723437,3.16588,3158.7,3158.5,0.3167]
[1731986724037,3.16588,3158.7,3158.3,0.3167]
[1731986725744,3.95098,3158.8,3158.3,0.3167]
[1731986726304,5.24995851,3158.8,3158.3,0.3167]
[1731986726727,3.16589,3158.7,3158.3,0.3167]
[1731986728449,4.46493851,3158.6,3158.4,0.3167]
[1731986729553,4.46493851,3158.6,3158.2,0.3167]
[1731986730123,3.96126,3158.3,3158.2,0.3167]
[1731986730323,4.01482514,3158.3,3158.2,0.3167]
[1731986730652,3.16646,3158.1,3157.6,0.3167]
[1731986730955,4.46543851,3158.1,3157.6,0.3167]
[1731986731823,4.46563851,3157.9,3157.4,0.3167]
[1731986732023,1.29897851,3157.5,3157.4,0.3167]
[1731986732222,3.16706,3157.5,3157.4,0.3167]
[1731986732550,0.05356514,3157.6,3157.4,0.3167]
[1731986732750,3.16707,3157.5,3157.1,0.3167]
[1731986732978,0.05356514,3157.4,3157.1,0.3167]
[1731986733262,3.16727,3157.3,3157.1,0.3167]
[1731986733472,3.22092514,3157.2,3157.1,0.3167]
[1731986733759,4.01762514,3157.2,3156.7,0.3167]
[1731986734374,3.70092514,3157.2,3156.6,2.85123]
[1731986734521,3.70092514,3157.2,3156.7,0.3167]
[1731986737656,3.16748,3157.1,3156.5,3.48474]
[1731986737856,3.16748,3157.1,3156.5,3.86472622]
[1731986738367,0.7967,3157.2,3156.7,0.3167]
[1731986739076,3.96407,3157.2,3156.7,0.3167]
[1731986739442,3.96407,3157.2,3156.6,0.3167]
[1731986739641,3.96407,3157.2,3156.6,1.04515122]
[1731986740494,3.16772,3156.9,3156.5,0.3167]
[1731986740647,0.8243,3158.3,3157.2,0.3167]
[1731986740998,0.8243,3158.3,3156.7,3.05198743]
[1731986740999,3.16646,3158.1,3157.6,0.3167]
[1731986741200,3.99057,3158.3,3157.6,0.3167]
[1731986741201,3.16636,3158.2,3157.6,0.3167]
[1731986741346,3.16656,3158.0,3157.6,0.665085]
[1731986741686,0.7863,3157.7,3157.6,0.3167]
[1731986741844,0.7863,3157.7,3157.3,0.3167]
[1731986742189,3.16706,3157.5,3157.3,0.3167]
[1731986742541,3.71716,3157.4,3157.3,0.3167]
[1731986742738,3.16733,3157.3,3156.5,3.16805]
[1731986742982,3.16733,3157.3,3156.6,0.3167]
[1731986743196,4.50347,3157.4,3156.8,0.3167]
[1731986743573,3.16726,3157.3,3156.8,0.3167]
[1731986743949,1.3363,3157.4,3156.8,0.3167]
[1731986744287,3.16728,3157.3,3156.7,0.3167]
[1731986745380,1.3363,3157.4,3156.7,3.48455]
[1731986745903,0.7863,3157.4,3157.0,3.16755]
[1731986746201,0.7614,3157.7,3157.0,3.48425]
[1731986746406,0.7614,3157.7,3157.1,3.16746]
[1731986746556,3.1666,3158.0,3157.1,3.16746]
[1731986746762,3.9452,3158.0,3157.2,0.348416]
[1731986749826,3.9452,3158.0,3157.4,3.48385]
[1731986749995,3.9452,3158.0,3157.4,3.16715]
[1731986750628,3.9452,3158.0,3156.5,0.01]
[1731986750629,4.64491874,3158.0,3156.5,0.01]
[1731986750785,6.99718743,3158.0,3157.3,3.16726]
[1731986751126,6.99718743,3158.0,3157.4,3.16713]
[1731986751306,0.7786,3158.0,3157.3,3.16726]
[1731986751806,3.16682,3157.8,3157.1,3.48394]
[1731986752362,3.16687,3157.7,3157.1,3.48394]
[1731986752663,0.55,3157.8,3157.1,3.48389]
[1731986752868,3.71677,3157.8,3157.1,0.3165]
[1731986753015,3.71677,3157.8,3157.2,3.16736]
[1731986754616,0.8257,3157.6,3157.1,0.3165]
[1731986755051,0.5093,3157.6,3157.2,0.3165]
[1731986756027,0.5093,3157.6,3157.1,0.3165]
[1731986756234,0.5093,3157.6,3157.4,0.3165]
[1731986756417,3.16623,3158.4,3157.4,0.3165]
[1731986756626,3.05198743,3158.3,3157.9,0.3165]
[1731986756822,0.62182174,3158.2,3157.9,0.3165]
[1731986757041,3.78826174,3158.2,3157.9,0.3165]
[1731986757665,3.78826174,3158.2,3157.7,0.3165]
[1731986757964,3.78826174,3158.2,3157.9,0.3165]
[1731986757965,3.16642,3158.2,3157.9,0.3165]
[1731986758118,0.8274,3158.1,3157.9,0.3165]
[1731986758918,0.8274,3158.1,3158.0,0.3165]
[1731986759561,0.8274,3158.1,3157.6,3.16693]
[1731986759562,0.8274,3158.9,3158.3,0.3165]
[1731986759759,0.8274,3158.9,3158.3,3.48274]
[1731986760038,3.16577,3158.8,3158.3,0.3165]
[1731986760238,0.8274,3158.9,3158.3,3.48275]
[1731986760777,0.01,3160.6,3159.2,0.3165]
[1731986760948,3.16467,3159.9,3159.2,3.48177]
[1731986762135,3.16467,3159.9,3159.2,4.178142]
[1731986762380,6.21675743,3159.8,3159.1,0.3165]
[1731986762563,3.16497,3159.6,3159.1,0.3165]
[1731986762766,0.7734,3159.5,3159.1,0.3165]
[1731986763086,6.99044743,3159.5,3159.1,0.3165]
[1731986763262,3.82538743,3159.5,3159.1,0.3165]
[1731986763472,3.82538743,3159.5,3159.0,0.3165]
[1731986763473,7.98948017,3159.5,3159.0,0.3165]
[1731986763696,3.05198743,3159.2,3159.0,0.3165]
[1731986763985,3.16545,3159.1,3159.0,0.3165]
[1731986764381,3.05198743,3159.2,3159.0,0.3165]
[1731986764606,3.05198743,3159.2,3158.5,3.16603]
[1731986764607,6.21735743,3159.2,3158.6,0.3165]
[1731986764784,6.21735743,3159.2,3158.5,3.16603]
[1731986765497,3.05198743,3159.2,3158.6,3.16593]
[1731986765814,3.16534,3159.3,3158.6,3.16593]
[1731986766094,7.00447743,3158.9,3158.1,0.3164]
[1731986766301,3.05198743,3158.6,3158.1,0.6329]
[1731986766612,0.7868,3159.3,3158.5,0.6329]
[1731986766780,3.05198743,3158.8,3158.2,0.3164]
[1731986766981,3.05198743,3158.8,3158.2,3.48275]
[1731986767296,3.16589,3158.7,3158.2,0.3164]
[1731986767595,3.92539,3158.7,3158.1,0.3165]
[1731986767802,3.92539,3158.7,3158.0,0.3165]
[1731986767803,3.16598,3158.6,3158.0,0.3165]
[1731986768099,1.69785374,3158.7,3158.0,0.3165]
[1731986768597,4.86373374,3158.7,3158.0,0.3165]
[1731986769654,3.16596,3158.6,3158.0,0.3165]
[1731986770796,1.10815812,3158.6,3158.0,0.3165]
[1731986771016,1.10815812,3158.6,3157.6,3.16695]
[1731986771017,3.16631,3158.3,3157.6,0.6329]
[1731986771220,3.16656,3158.0,3157.6,0.3165]
[1731986771371,0.7911,3158.1,3157.6,0.3165]
[1731986771573,3.16701,3157.6,3156.8,4.1994102]
[1731986771777,3.16701,3157.6,3157.0,0.3164]
[1731986772008,3.16701,3157.6,3157.0,0.6329]
[1731986772475,3.05198743,3157.9,3157.0,0.6329]
[1731986772476,3.16708,3157.5,3157.0,0.6329]
[1731986773014,3.05198743,3157.9,3157.0,0.6329]
[1731986773220,3.16677,3157.8,3157.2,0.3165]
[1731986773376,3.16677,3157.8,3157.2,3.48385]
[1731986773573,3.16694,3157.7,3157.2,0.3165]
[1731986773810,3.1668,3157.8,3157.2,0.3165]
[1731986774118,3.16686,3157.7,3157.1,0.3165]
[1731986774421,3.16686,3157.7,3157.0,0.3164]
[1731986774422,3.16717,3157.4,3157.0,0.6329]
[1731986774832,2.85077,3157.4,3157.0,0.6329]
[1731986775987,3.16727,3157.3,3157.0,0.6329]
[1731986776187,3.16727,3157.3,3156.9,0.3165]
[1731986776601,3.16744,3157.2,3156.9,0.3165]
[1731986776818,3.16744,3157.2,3156.8,1.0316502]
[1731986776819,3.05198743,3157.2,3156.8,1.0316502]
[1731986777167,3.16766,3157.0,3156.8,1.0316502]
[1731986777492,3.16766,3156.9,3156.8,1.0316502]
[1731986778341,7.02524743,3156.9,3156.8,1.0316502]
[1731986778932,7.02524743,3156.9,3156.2,0.3165]
[1731986779133,3.97326,3156.9,3156.2,3.48486]
[1731986779287,3.16749,3157.1,3156.3,0.696626]
[1731986779908,3.16749,3157.1,3156.3,0.7599837]
[1731986780196,3.16749,3157.1,3156.4,3.48462]
[1731986780610,3.16727,3157.3,3156.7,3.16786]
[1731986780811,3.16727,3157.3,3156.7,3.48436]
[1731986781228,3.16713,3157.5,3156.7,3.48436]
[1731986781539,3.16713,3157.5,3156.8,3.16776]
[1731986781747,0.7997,3158.0,3157.2,0.6329]
[1731986782035,3.16669,3157.9,3157.4,0.3165]
[1731986782246,3.483449,3157.8,3157.2,0.3164]
[1731986782451,3.16703,3157.6,3157.0,3.48404]
[1731986782746,3.16694,3157.7,3157.0,0.3165]
[1731986782897,3.16694,3157.7,3157.1,3.547444]
[1731986783099,3.16694,3157.7,3157.1,3.863944]
[1731986783558,3.16697,3157.6,3157.1,0.696544]
[1731986784346,3.16694,3157.7,3157.1,3.863904]
[1731986784640,3.16706,3157.5,3157.1,0.696544]
[1731986784863,3.16706,3157.5,3156.9,3.16767]
[1731986785001,3.16706,3157.5,3157.0,0.3165]
[1731986786659,3.05198743,3157.7,3157.0,0.3165]
[1731986786956,3.16733,3157.3,3157.0,0.3165]
[1731986787105,3.16738,3157.2,3157.0,0.3165]
[1731986787620,3.1671,3157.5,3157.0,0.3165]
[1731986787836,3.16727,3157.3,3157.0,0.3165]
[1731986788050,3.16718,3157.4,3157.0,0.3165]
[1731986788348,3.1671,3157.5,3157.0,0.3165]
[1731986788506,3.16732,3157.3,3157.0,0.3165]
[1731986790636,14.12732,3157.3,3157.0,0.3165]
[1731986790868,10.96,3157.3,3157.0,3.48405]
[1731986791173,10.96,3157.3,3157.2,3.48386]
[1731986791323,10.96,3157.3,3157.2,4.149001]
[1731986794949,10.6436,3157.3,3157.2,3.832601]
[1731986801945,10.6436,3157.3,3157.2,0.3165]
[1731986802459,10.6436,3157.3,3157.1,0.3165]
[1731986805184,10.3272,3157.3,3157.2,2.85076]
[1731986805388,10.3272,3157.3,3157.2,3.76933]
[1731986811050,10.3272,3157.3,3157.1,0.3165]
[1731986811745,0.7657,3157.2,3157.1,0.3165]
[1731986812098,0.7657,3157.2,3156.9,0.3165]
[1731986812258,3.16747,3157.1,3156.9,0.3165]
[1731986812462,4.910234,3157.1,3156.9,0.3165]
[1731986812764,1.742764,3157.1,3156.9,0.3165]
[1731986812972,0.7657,3157.2,3156.9,0.3165]
[1731986814054,0.7657,3157.2,3157.0,0.3165]
[1731986814380,10.3272,3157.3,3157.0,0.3165]
[1731986815300,10.0108,3157.3,3157.1,3.16743]
[1731986815450,10.0108,3157.3,3157.2,0.3165]
[1731986817955,10.0108,3157.3,3157.0,0.3165]
[1731986818270,10.0108,3157.3,3157.0,3.48399]
[1731986823803,0.7707,3157.2,3156.9,0.3165]
[1731986824175,2.482297,3157.2,3156.9,0.3165]
[1731986824378,3.16752,3157.1,3156.9,0.3165]
[1731986824902,2.482297,3157.2,3157.0,0.3165]
[1731986825105,0.7707,3157.2,3157.0,0.3165]
[1731986825401,3.16746,3157.1,3157.0,0.3165]
[1731986825583,3.98846,3157.1,3157.0,0.3165]
[1731986825783,3.98846,3157.1,3156.5,0.3165]
[1731986825984,3.16775,3156.9,3156.5,0.3165]
[1731986826777,6.3355,3156.9,3156.5,0.3165]
[1731986826996,3.8834,3156.9,3156.4,0.3165]
[1731986827678,0.7518,3156.6,3156.4,0.3165]
[1731986827879,0.7518,3156.6,3156.0,0.3165]
[1731986828127,3.16815,3156.5,3156.0,0.3165]
[1731986829919,3.16817,3156.4,3156.0,0.3165]
[1731986830120,3.91983,3156.6,3156.0,0.3165]
[1731986830324,3.16814,3156.5,3156.0,0.3165]
[1731986830880,3.16825,3156.4,3156.1,0.3165]
[1731986831076,3.98956,3156.3,3156.1,0.3165]
[1731986831294,4.705341,3156.3,3156.1,0.3165]
[1731986831489,3.98956,3156.3,3156.1,0.3165]
[1731986831925,3.98956,3156.3,3156.2,0.3165]
[1731986831926,0.8212,3156.3,3156.2,0.3165]
[1731986832780,0.7597,3157.1,3156.3,0.3165]
[1731986833017,0.7597,3157.1,3156.6,3.48444]
[1731986833985,3.92716,3157.1,3156.6,3.48444]
[1731986834186,3.92716,3157.1,3156.4,0.3165]
[1731986834391,5.00209426,3157.1,3156.4,3.4846]
[1731986834592,5.00209426,3157.1,3156.4,0.3165]
[1731986834824,3.16769,3156.9,3156.4,0.3165]
[1731986835812,3.16769,3156.9,3156.2,0.3165]
[1731986836023,3.16769,3156.9,3156.1,3.16842]
[1731986836024,3.16769,3156.9,3156.4,0.3165]
[1731986838283,0.81697843,3156.9,3156.5,0.3165]
[1731986838577,0.81697843,3156.9,3156.5,3.48454]
[1731986838737,5.00218426,3157.1,3156.5,3.48454]
[1731986838900,8.16972426,3157.1,3156.5,3.48454]
[1731986839100,3.16757,3157.0,3156.5,3.48454]
[1731986839305,3.16757,3157.0,3156.4,3.48465]
[1731986839824,2.85117,3157.0,3156.4,3.16825]
[1731986840147,5.00217426,3157.1,3156.6,0.3165]
[1731986841451,3.92724,3157.1,3156.6,0.3165]
[1731986845938,3.16756,3157.0,3156.4,0.3165]
[1731986846852,3.92724,3157.1,3156.4,0.3165]
[1731986846853,3.16767,3156.9,3156.4,0.3165]
[1731986848763,7.0948,3157.1,3156.4,3.48465]
[1731986848919,8.79380274,3157.1,3156.4,3.48465]
[1731986849343,5.62624274,3157.1,3156.4,3.48465]
[1731986849518,5.62623274,3157.1,3156.6,0.3165]
[1731986850058,5.30983274,3157.1,3156.5,2.85142]
[1731986850711,5.30983274,3157.1,3156.6,0.3165]
[1731986851167,8.47738274,3157.1,3156.6,0.3165]
[1731986851340,3.16769,3156.9,3156.5,0.3165]
[1731986851540,0.58388237,3157.0,3156.5,0.3165]
[1731986851762,3.16756,3157.0,3156.5,0.3165]
[1731986851963,6.21994743,3156.6,3156.5,0.3165]
[1731986852259,6.21994743,3156.6,3156.0,0.3165]
[1731986852459,6.21994743,3156.6,3156.2,0.3165]
[1731986852630,6.22024743,3156.3,3156.2,0.3165]
[1731986853043,7.04254743,3156.3,3156.2,0.3165]
[1731986853610,3.16846,3156.2,3155.6,0.3165]
[1731986853736,3.16846,3156.2,3155.6,3.48546]
[1731986854532,0.8223,3156.5,3156.1,0.3165]
[1731986855623,3.99037,3156.5,3156.1,0.3165]
[1731986856463,0.8223,3156.5,3156.1,0.3165]
[1731986859272,0.8223,3156.5,3156.0,3.16838]
[1731986859477,0.8223,3156.5,3156.1,0.3165]
[1731986860028,0.5059,3156.5,3156.1,0.3165]
[1731986860336,3.16746,3157.1,3156.3,0.3165]
[1731986860542,3.16746,3157.1,3156.5,0.3165]
[1731986861236,3.16746,3157.1,3156.5,3.48449]
[1731986861438,3.05198743,3157.2,3156.7,0.3165]
[1731986861783,10.0108,3157.3,3156.9,0.3165]
[1731986861933,10.0108,3157.3,3157.1,0.3165]
[1731986862445,10.0108,3157.3,3157.2,3.48386]
[1731986867992,10.0108,3157.3,3157.1,3.48396]
[1731986868130,10.0108,3157.3,3157.1,0.3165]
[1731986868666,6.21934743,3157.2,3157.1,0.3165]
[1731986868984,6.21934743,3157.2,3156.7,0.3165]
[1731986869277,3.05198743,3157.2,3156.7,3.48434]
[1731986869459,3.05198743,3157.2,3156.7,0.3165]
[1731986869670,3.05198743,3157.2,3156.7,3.48435]
[1731986869976,10.0108,3157.3,3156.9,0.3165]
[1731986870175,10.0108,3157.3,3156.9,3.48408]
[1731986873155,10.0108,3157.3,3157.0,0.3165]
[1731986873356,11.71090574,3157.3,3157.0,0.3165]
[1731986874256,18.04558574,3157.3,3156.8,0.3165]
[1731986874456,3.16737,3157.2,3156.8,0.3165]
[1731986874691,1.80456057,3157.2,3156.8,0.3165]
[1731986874894,4.97199057,3157.2,3156.8,0.3165]
[1731986875195,4.65559057,3157.2,3156.6,3.16796]
[1731986875394,4.65559057,3157.2,3156.7,0.3165]
[1731986875593,10.0108,3157.3,3156.9,0.6329]
[1731986875797,10.0108,3157.3,3157.0,3.16756]
[1731986876322,10.0108,3157.3,3157.1,3.16746]
[1731986876456,10.0108,3157.3,3157.2,0.3165]
[1731986877802,10.0108,3157.3,3157.2,3.48386]
[1731986878497,10.0108,3157.3,3157.2,4.149002]
[1731986880907,10.0108,3157.3,3157.1,0.3165]
[1731986881094,10.0108,3157.3,3157.2,0.3165]
[1731986884450,10.0108,3157.3,3157.0,3.48399]
[1731986885077,10.0108,3157.3,3157.0,0.3165]
[1731986886275,10.0108,3157.3,3157.2,0.3165]
[1731986887422,10.0108,3157.3,3157.1,0.3165]
[1731986888542,10.0108,3157.3,3157.0,0.3165]
[1731986889242,10.0108,3157.3,3156.9,3.48415]
[1731986890043,10.0108,3157.3,3157.0,3.16755]
[1731986890452,10.0108,3157.3,3157.1,3.1674]
[1731986892138,10.0108,3157.3,3157.2,3.16736]
[1731986892334,10.0108,3157.3,3157.2,3.16746]
[1731986892335,9.378,3157.3,3157.2,3.16746]
[1731986892533,9.0616,3157.3,3157.2,2.85106]
[1731986892990,8.7452,3157.3,3157.2,2.85106]
[1731986893154,8.7452,3157.3,3157.2,3.5194269]
[1731986893559,8.4288,3157.3,3157.2,0.9848669]
[1731986893767,8.4288,3157.3,3157.2,4.1522269]
[1731986894357,8.4288,3157.3,3157.2,4.4687269]
[1731986894565,8.1124,3157.3,3157.2,4.1523269]
[1731986895489,7.796,3157.3,3157.2,4.1523269]
[1731986896785,7.26642812,3157.3,3157.2,6.8459269]
[1731986896988,7.26642812,3157.3,3157.2,6.5296669]
[1731986896989,6.21406995,3157.3,3157.2,6.5296669]
[1731986897195,5.22483895,3157.3,3157.2,10.9004179]
[1731986897359,0.7738,3158.7,3158.5,0.3165]
[1731986897861,3.93938,3159.0,3158.5,3.48255]
[1731986898584,0.7738,3159.0,3158.5,3.48249]
[1731986898773,0.7738,3159.2,3158.8,0.3165]
[1731986901679,0.7738,3159.2,3158.6,0.3165]
[1731986901880,3.93917,3159.2,3158.6,0.3165]
[1731986902092,1.78944474,3159.2,3158.6,0.3165]
[1731986902418,1.78944474,3159.2,3158.1,0.3165]
[1731986902419,3.85998743,3158.7,3158.1,0.3165]
[1731986902560,3.16617,3158.4,3158.1,0.3165]
[1731986902760,3.16617,3158.4,3157.9,0.3165]
[1731986903015,3.16626,3158.3,3158.1,0.3165]
[1731986903309,0.808,3158.2,3158.1,0.3165]
[1731986903709,3.97436,3158.2,3158.1,0.3165]
[1731986904013,4.99362074,3158.2,3157.6,0.3165]
[1731986904507,4.99362074,3158.2,3157.6,3.48345]
[1731986905005,0.808,3158.2,3157.8,0.3165]
[1731986905205,0.808,3158.2,3158.0,0.3165]
[1731986905410,3.16616,3158.4,3158.0,0.3165]
[1731986905567,3.880174,3158.4,3158.0,0.3165]
[1731986905769,3.16627,3158.3,3158.0,0.3165]
[1731986905969,3.16628,3158.3,3158.0,0.3165]
[1731986906199,3.880174,3158.4,3158.1,0.3165]
[1731986906365,0.714014,3158.4,3158.1,0.3165]
[1731986906571,3.97407,3158.5,3158.1,0.3165]
[1731986907011,0.808,3158.5,3158.1,0.3165]
[1731986907173,3.97406,3158.5,3158.0,0.3165]
[1731986908023,3.16632,3158.3,3158.0,0.3165]
[1731986908309,3.16632,3158.3,3157.7,0.3165]
[1731986908468,3.16636,3158.2,3157.7,3.48335]
[1731986908671,3.16647,3158.1,3157.7,0.3165]
[1731986908899,0.316632,3158.2,3157.7,0.3165]
[1731986909103,0.316632,3158.2,3157.7,3.48329]
[1731986909300,3.16632,3158.3,3157.7,3.48329]